bitfinex-derivatives/quotes_BTCF0:USTF0_20241210
["timestamp","ask_amount","ask_price","bid_price","bid_amount"]
[1733839299499,8.108e-05,97811.0,97810.0,0.051101]
[1733839299699,0.3608,97838.0,97836.0,0.051087]
[1733839300588,0.34364,97839.0,97837.0,0.0917]
[1733839300793,0.36089117,97838.0,97835.0,0.24329449]
[1733839300988,0.36089117,97838.0,97815.0,0.3608]
[1733839300989,0.44969117,97838.0,97822.0,0.24329449]
[1733839301204,0.3608,97826.0,97815.0,0.60409449]
[1733839301392,0.3608,97826.0,97815.0,0.3608]
[1733839301393,0.56257735,97826.0,97815.0,0.3608]
[1733839302394,0.56257735,97826.0,97822.0,0.003]
[1733839303593,0.56257735,97826.0,97815.0,0.3638]
[1733839303992,0.51148435,97826.0,97817.0,0.051097]
[1733839304196,0.51248435,97826.0,97815.0,0.3628]
[1733839304401,0.51248435,97826.0,97824.0,0.051094]
[1733839304402,0.001,97826.0,97824.0,0.051094]
[1733839304898,9.117e-05,97838.0,97825.0,0.0944]
[1733839305109,9.117e-05,97838.0,97833.0,0.3608]
[1733839305295,9.117e-05,97838.0,97837.0,0.051087]
[1733839306396,0.00509117,97838.0,97837.0,0.051087]
[1733839306605,0.00809117,97838.0,97837.0,0.051087]
[1733839307303,0.00509117,97838.0,97837.0,0.051087]
[1733839307505,0.00609117,97838.0,97837.0,0.051087]
[1733839308205,0.00809117,97838.0,97837.0,0.052087]
[1733839308798,0.00809117,97838.0,97837.0,0.051087]
[1733839308799,0.00409117,97838.0,97837.0,0.051087]
[1733839308995,0.00309117,97838.0,97837.0,0.051087]
[1733839309202,0.00309117,97838.0,97837.0,0.057087]
[1733839309203,0.00409117,97838.0,97837.0,0.057087]
[1733839309508,0.00209117,97838.0,97837.0,0.066087]
[1733839310202,0.15128435,97860.0,97859.0,0.051076]
[1733839310400,0.15128435,97860.0,97852.0,0.3608]
[1733839310401,0.00112001,97860.0,97852.0,0.3608]
[1733839310603,0.0006,97860.0,97852.0,0.3608]
[1733839310906,0.051079,97853.0,97852.0,0.3608]
[1733839311101,0.051082,97847.0,97837.0,0.006]
[1733839311298,0.001,97838.0,97837.0,0.066087]
[1733839311805,0.051084,97843.0,97837.0,0.057087]
[1733839312006,0.15068435,97847.0,97837.0,0.057087]
[1733839312302,0.15068435,97847.0,97838.0,0.051086]
[1733839312501,0.001,97838.0,97837.0,0.015]
[1733839313097,0.1599336,97847.0,97837.0,0.062087]
[1733839313612,0.1599336,97847.0,97846.0,0.051082]
[1733839313802,0.00924925,97847.0,97846.0,0.051082]
[1733839314105,0.2733,97852.0,97837.0,0.008]
[1733839314411,0.15068435,97847.0,97837.0,0.008]
[1733839314705,0.15068435,97847.0,97838.0,0.051086]
[1733839314916,0.15068435,97847.0,97837.0,0.008]
[1733839314917,0.051087,97838.0,97837.0,0.006]
[1733839315606,0.051087,97838.0,97837.0,0.005]
[1733839315805,0.051087,97838.0,97837.0,0.002]
[1733839316201,0.052087,97838.0,97820.0,0.051096]
[1733839316396,0.15068435,97830.0,97826.0,0.051092]
[1733839316598,0.15068435,97830.0,97818.0,0.3608]
[1733839316599,0.15068435,97830.0,97829.0,0.051091]
[1733839318604,0.15068435,97830.0,97829.0,0.052091]
[1733839319200,0.15068435,97830.0,97829.0,0.053091]
[1733839320000,0.15068435,97830.0,97829.0,0.002]
[1733839320397,0.15068435,97830.0,97829.0,0.053091]
[1733839320608,0.3608,97833.0,97832.0,0.05109]
[1733839322209,0.3608,97833.0,97827.0,0.24329449]
[1733839322410,0.3608,97833.0,97818.0,0.36148]
[1733839322411,0.3608,97833.0,97824.0,0.24329449]
[1733839322612,0.051092,97827.0,97820.0,0.24329449]
[1733839322909,0.1778,97826.0,97819.0,0.24329449]
[1733839323114,0.1778,97826.0,97818.0,0.3608]
[1733839323411,0.1778,97826.0,97822.0,0.18207439]
[1733839324103,0.1778,97826.0,97824.0,0.18207439]
[1733839324300,0.051093,97825.0,97824.0,0.18207439]
[1733839324502,0.36092571,97825.0,97818.0,0.00068]
[1733839324711,0.36092571,97825.0,97796.0,0.3608]
[1733839324712,0.0511,97813.0,97811.0,0.1821508]
[1733839324908,0.3608,97813.0,97810.0,0.1821508]
[1733839325213,0.15068435,97821.0,97808.0,0.24329449]
[1733839325420,0.15068435,97821.0,97820.0,0.051096]
[1733839325612,0.36092571,97825.0,97824.0,0.051094]
[1733839326310,0.00012571,97825.0,97824.0,0.051094]
[1733839326504,0.00012571,97825.0,97824.0,0.35521212]
[1733839326709,0.00012571,97825.0,97824.0,0.80698549]
[1733839326910,0.3608,97833.0,97824.0,0.80898549]
[1733839327104,0.3608,97833.0,97832.0,0.05109]
[1733839327305,0.3608,97833.0,97832.0,0.44618149]
[1733839327910,0.15068435,97840.0,97833.0,0.051089]
[1733839328116,0.15068435,97840.0,97824.0,0.3628]
[1733839328117,0.15068435,97840.0,97834.0,0.7000674]
[1733839328303,9.518e-05,97839.0,97834.0,0.051088]
[1733839328511,0.051087,97838.0,97833.0,0.30412795]
[1733839328704,0.051087,97838.0,97832.0,0.30412795]
[1733839328705,0.0926,97838.0,97832.0,0.30412795]
[1733839329012,0.411888,97835.0,97833.0,0.24353984]
[1733839329202,0.05109,97832.0,97831.0,0.24363979]
[1733839329401,0.05109,97832.0,97824.0,0.3628]
[1733839329402,0.05109,97832.0,97829.0,0.24363979]
[1733839329610,0.05109,97832.0,97828.0,0.24363979]
[1733839329913,0.0901,97834.0,97831.0,0.18274306]
[1733839330119,0.0901,97834.0,97819.0,0.24363979]
[1733839330120,0.3901,97834.0,97819.0,0.24363979]
[1733839330408,0.3901,97834.0,97807.0,0.36557439]
[1733839330409,0.051097,97817.0,97813.0,0.60443979]
[1733839330622,0.3608,97825.0,97813.0,0.60443979]
[1733839330623,0.051098,97816.0,97813.0,0.3608]
[1733839331006,0.3608,97825.0,97810.0,0.24363979]
[1733839331313,0.0511,97813.0,97808.0,0.24363979]
[1733839331511,0.15068435,97820.0,97807.0,0.24363979]
[1733839331704,0.3608,97815.0,97807.0,0.24363979]
[1733839331911,0.3608,97815.0,97806.0,0.24363979]
[1733839332215,0.3608,97815.0,97805.0,0.24363979]
[1733839332412,0.051101,97810.0,97804.0,0.24363979]
[1733839332715,0.15068435,97809.0,97807.0,0.004]
[1733839332903,0.051102,97808.0,97807.0,0.004]
[1733839333111,0.05117683,97808.0,97807.0,0.004]
[1733839333304,0.23157683,97808.0,97807.0,0.004]
[1733839333513,0.051108,97798.0,97795.0,0.00010346]
[1733839333709,0.3608,97802.0,97795.0,0.00010346]
[1733839334216,0.051108,97797.0,97795.0,0.00010346]
[1733839335820,0.052108,97797.0,97795.0,0.00910346]
[1733839336007,0.001,97797.0,97795.0,0.00910346]
[1733839336416,0.001,97797.0,97796.0,0.3608]
[1733839336613,0.001,97797.0,97795.0,0.00910346]
[1733839336820,0.002,97797.0,97795.0,0.01510346]
[1733839337218,0.051108,97796.0,97795.0,0.01510346]
[1733839338310,0.051108,97796.0,97795.0,0.00910346]
[1733839339022,0.051108,97796.0,97795.0,0.00010346]
[1733839339215,0.055108,97796.0,97795.0,0.00010346]
[1733839339818,0.056108,97796.0,97795.0,0.00010346]
[1733839340022,0.057108,97796.0,97795.0,0.00010346]
[1733839340721,0.006,97796.0,97795.0,0.00010346]
[1733839341321,0.002,97796.0,97795.0,0.36090346]
[1733839341527,0.007,97796.0,97795.0,0.36090346]
[1733839341713,0.15068435,97805.0,97795.0,0.45430346]
[1733839341918,0.15068435,97805.0,97804.0,0.3608]
[1733839342118,0.15068435,97814.0,97807.0,0.051103]
[1733839342316,0.15985819,97814.0,97807.0,0.051103]
[1733839342725,0.15985819,97814.0,97804.0,0.3608]
[1733839342923,0.001,97805.0,97804.0,0.3608]
[1733839343319,0.001,97805.0,97795.0,0.01378346]
[1733839343521,0.051108,97797.0,97795.0,0.00810346]
[1733839345337,0.051108,97797.0,97795.0,0.00010346]
[1733839346018,0.051108,97797.0,97795.0,0.00510346]
[1733839346625,0.06015395,97797.0,97795.0,0.00210346]
[1733839346831,0.06015395,97797.0,97795.0,0.00310346]
[1733839347226,0.00904595,97797.0,97795.0,0.00310346]
[1733839347526,0.3608,97798.0,97795.0,0.00310346]
[1733839348220,0.3608,97798.0,97795.0,0.00210346]
[1733839348419,0.3608,97798.0,97795.0,0.00010346]
[1733839348929,0.36990212,97798.0,97795.0,0.00010346]
[1733839349134,0.37090212,97798.0,97795.0,0.00010346]
[1733839349722,0.36990212,97798.0,97795.0,0.00010346]
[1733839349925,0.36990212,97798.0,97795.0,0.00210346]
[1733839350821,0.3608,97798.0,97795.0,0.00210346]
[1733839351027,0.00940701,97800.0,97796.0,0.0887]
[1733839351324,0.051106,97800.0,97796.0,0.0887]
[1733839351722,0.15068435,97805.0,97796.0,0.0887]
[1733839351929,0.15973365,97805.0,97796.0,0.0887]
[1733839352630,0.15068435,97805.0,97802.0,0.3608]
[1733839352821,0.15068435,97805.0,97803.0,0.051104]
[1733839353029,0.49420435,97813.0,97803.0,0.140404]
[1733839353223,0.49420435,97813.0,97803.0,0.0893]
[1733839354630,0.05117683,97808.0,97796.0,0.141808]
[1733839354830,0.05117683,97808.0,97797.0,0.00319599]
[1733839355134,7.483e-05,97808.0,97803.0,0.3638]
[1733839355337,7.483e-05,97808.0,97803.0,0.008]
[1733839355934,0.00107483,97808.0,97797.0,0.008]
[1733839356135,0.00107483,97808.0,97803.0,0.3608]
[1733839356833,7.483e-05,97808.0,97803.0,0.3668]
[1733839357232,7.483e-05,97808.0,97803.0,0.006]
[1733839358240,0.051104,97804.0,97803.0,0.006]
[1733839358435,0.051104,97804.0,97803.0,0.004]
[1733839358647,0.051108,97797.0,97795.0,0.00010346]
[1733839359335,0.3608,97801.0,97795.0,0.00010346]
[1733839359841,0.3608,97802.0,97795.0,0.00010346]
[1733839360333,0.36998391,97802.0,97795.0,0.00010346]
[1733839360840,0.051107,97800.0,97795.0,0.00010346]
[1733839361041,0.36998391,97802.0,97795.0,0.00010346]
[1733839361042,0.051108,97798.0,97795.0,0.00010346]
[1733839361430,0.051108,97796.0,97795.0,0.00010346]
[1733839363826,0.052108,97796.0,97795.0,0.00010346]
[1733839364734,0.055108,97796.0,97795.0,0.00010346]
[1733839366543,0.07517414,97796.0,97795.0,0.00010346]
[1733839367442,0.02406614,97796.0,97795.0,0.00010346]
[1733839368444,0.02406614,97796.0,97795.0,0.05121246]
[1733839368640,0.004,97796.0,97795.0,0.05121246]
[1733839368836,0.004,97796.0,97795.0,0.05440856]
[1733839371346,0.1004478,97805.0,97804.0,0.051104]
[1733839371544,7.483e-05,97808.0,97804.0,0.051104]
[1733839371545,7.483e-05,97808.0,97807.0,0.051103]
[1733839372340,7.483e-05,97808.0,97807.0,0.05429868]
[1733839373434,7.483e-05,97808.0,97807.0,0.05829868]
[1733839375653,7.483e-05,97808.0,97807.0,0.30304438]
[1733839376348,7.483e-05,97808.0,97807.0,0.05829868]
[1733839376538,0.3436,97842.0,97807.0,0.34034489]
[1733839376736,0.3436,97842.0,97824.0,0.3608]
[1733839376939,0.3436,97842.0,97829.0,0.3608]
[1733839376940,0.1004478,97840.0,97829.0,0.3608]
[1733839377137,0.3436,97842.0,97841.0,0.051085]
[1733839377347,0.36367828,97842.0,97841.0,0.051085]
[1733839377547,0.36375029,97842.0,97841.0,0.051085]
[1733839378246,0.34367201,97842.0,97841.0,0.051085]
[1733839378447,1e-08,97842.0,97841.0,0.05427928]
[1733839378641,0.00058,97849.0,97848.0,0.051081]
[1733839378845,0.00058,97849.0,97848.0,0.411881]
[1733839379151,0.00058,97849.0,97848.0,0.41507503]
[1733839379444,0.00058,97849.0,97848.0,0.411881]
[1733839379648,0.00067692,97849.0,97848.0,0.411881]
[1733839380145,0.00067692,97849.0,97848.0,0.418881]
[1733839380740,0.3436,97869.0,97868.0,0.051071]
[1733839381048,0.35272047,97869.0,97868.0,0.411871]
[1733839381654,0.35280734,97869.0,97868.0,0.411871]
[1733839382755,0.35480734,97869.0,97868.0,0.411871]
[1733839382940,0.35580734,97869.0,97868.0,0.411871]
[1733839383146,0.37652271,97869.0,97868.0,0.411871]
[1733839383342,0.37652271,97869.0,97855.0,0.051077]
[1733839383343,0.051072,97866.0,97855.0,0.051077]
[1733839383551,0.3608,97856.0,97838.0,0.3608]
[1733839383743,0.15043564,97848.0,97846.0,0.051082]
[1733839383943,0.3608,97856.0,97854.0,0.051078]
[1733839383944,0.34,97855.0,97854.0,0.051078]
[1733839384153,0.15043564,97864.0,97863.0,0.051073]
[1733839384450,0.36740224,97869.0,97855.0,0.0952]
[1733839384751,0.36740224,97869.0,97867.0,0.051071]
[1733839384957,0.36640224,97869.0,97867.0,0.051071]
[1733839385141,0.37545761,97869.0,97867.0,0.051071]
[1733839385749,0.37345761,97869.0,97867.0,0.051071]
[1733839386551,0.37645761,97869.0,97867.0,0.051071]
[1733839388244,0.37645761,97869.0,97855.0,0.185]
[1733839388245,0.3608,97868.0,97840.0,0.56727587]
[1733839388445,0.3608,97855.0,97854.0,0.051078]
[1733839388659,0.3608,97868.0,97867.0,0.051071]
[1733839390151,0.3618,97868.0,97867.0,0.051071]
[1733839390851,0.003,97868.0,97867.0,0.06039548]
[1733839391454,0.02007693,97888.0,97868.0,0.051071]
[1733839391661,0.02007693,97888.0,97887.0,0.051061]
[1733839391858,0.00908003,97895.0,97888.0,0.05106]
[1733839392151,0.36136001,97898.0,97888.0,0.05106]
[1733839392351,0.25043564,97900.0,97888.0,0.05106]
[1733839392547,0.36087728,97889.0,97888.0,0.05106]
[1733839392748,7.728e-05,97889.0,97888.0,0.05106]
[1733839392944,7.728e-05,97889.0,97874.0,8.911e-05]
[1733839393142,0.3608,97882.0,97874.0,8.911e-05]
[1733839393354,0.3608,97879.0,97874.0,8.911e-05]
[1733839393551,0.051067,97875.0,97874.0,8.911e-05]
[1733839393745,0.3608,97879.0,97875.0,0.051067]
[1733839393949,0.3608,97879.0,97874.0,8.911e-05]
[1733839394348,0.3608,97879.0,97878.0,0.051066]
[1733839395047,0.15043564,97884.0,97883.0,0.051063]
[1733839395255,0.3608,97887.0,97886.0,0.051061]
[1733839395857,0.3608,97887.0,97878.0,0.051065]
[1733839396051,0.3618,97879.0,97874.0,8.911e-05]
[1733839396758,0.3608,97887.0,97886.0,0.051061]
[1733839396759,0.3628,97887.0,97886.0,0.051061]
[1733839396946,0.3648,97887.0,97886.0,0.051061]
[1733839397147,0.3628,97887.0,97886.0,0.051061]
[1733839398052,0.003,97887.0,97886.0,0.051061]
[1733839398360,0.0916,97893.0,97886.0,0.051061]
[1733839398361,0.0926,97909.0,97899.0,0.051055]
[1733839398563,0.0926,97909.0,97899.0,0.411855]
[1733839398949,0.151055,97900.0,97894.0,0.051057]
[1733839399153,0.1,97900.0,97899.0,0.051055]
[1733839399349,0.1,97900.0,97881.0,0.051064]
[1733839399350,0.10008411,97900.0,97881.0,0.051064]
[1733839399656,0.15043564,97891.0,97890.0,0.051059]
[1733839399862,0.3608,97897.0,97896.0,0.051056]
[1733839400548,0.3608,97897.0,97881.0,0.051064]
[1733839400549,0.25251975,97900.0,97899.0,0.051055]
[1733839400748,0.10208411,97900.0,97899.0,0.051055]
[1733839402055,0.10208411,97900.0,97899.0,0.05424742]
[1733839402457,0.10008411,97900.0,97899.0,0.05424742]
[1733839403462,0.10108411,97900.0,97899.0,0.05424742]
[1733839404153,0.10008411,97900.0,97899.0,0.05624742]
[1733839404361,0.10008411,97900.0,97899.0,0.05724742]
[1733839405256,0.05008411,97900.0,97899.0,0.4206864]
[1733839405450,0.3608,97916.0,97915.0,0.051046]
[1733839405765,0.3608,97916.0,97915.0,0.05423811]
[1733839405966,0.34336,97923.0,97916.0,0.051046]
[1733839406460,0.0914956,97917.0,97916.0,0.05423797]
[1733839406857,9.56e-05,97917.0,97916.0,0.4171169]
[1733839407457,0.0010956,97917.0,97916.0,0.4171169]
[1733839408159,0.0010956,97917.0,97916.0,0.35732711]
[1733839408463,0.0010956,97917.0,97916.0,0.71977457]
[1733839408766,0.0010956,97917.0,97916.0,0.41668543]
[1733839408960,0.0010956,97917.0,97916.0,0.00319197]
[1733839409259,0.0010956,97917.0,97915.0,0.051046]
[1733839409453,0.0010956,97917.0,97904.0,0.30306565]
[1733839409656,0.10018272,97914.0,97913.0,0.051047]
[1733839409867,0.0010956,97917.0,97913.0,0.0031923]
[1733839409868,0.3608,97915.0,97913.0,0.0031923]
[1733839410061,0.0885,97914.0,97900.0,0.30306565]
[1733839410265,0.3608,97903.0,97902.0,0.051053]
[1733839410565,0.3608,97903.0,97902.0,0.05424553]
[1733839410753,0.3608,97903.0,97902.0,0.00319253]
[1733839411064,0.3608,97903.0,97896.0,0.00153198]
[1733839411259,0.0886,97902.0,97897.0,0.051056]
[1733839411653,0.0886,97902.0,97896.0,0.00153198]
[1733839412155,0.051056,97897.0,97896.0,0.00153198]
[1733839412352,0.051056,97897.0,97866.0,0.051072]
[1733839412353,0.05106,97889.0,97878.0,0.30306565]
[1733839412556,0.3608,97880.0,97879.0,0.00319324]
[1733839412760,0.3608,97880.0,97879.0,0.05425824]
[1733839413863,0.411865,97880.0,97879.0,0.00319324]
[1733839414057,0.00010271,97880.0,97879.0,0.00319324]
[1733839414256,0.05116771,97880.0,97879.0,0.00319324]
[1733839414655,0.05116771,97880.0,97878.0,0.012]
[1733839414856,0.051065,97879.0,97878.0,0.012]
[1733839415464,0.139465,97879.0,97878.0,0.008]
[1733839415656,0.0884,97879.0,97855.0,0.30306565]
[1733839415865,0.051072,97867.0,97854.0,0.051078]
[1733839416059,0.3608,97870.0,97851.0,0.3608]
[1733839416562,0.051074,97863.0,97851.0,0.3608]
[1733839416957,0.051075,97860.0,97843.0,0.30306565]
[1733839417265,0.051075,97860.0,97837.0,0.72376328]
[1733839417266,0.051079,97854.0,97839.0,0.051086]
[1733839417565,0.15033123,97849.0,97840.0,0.00319452]
[1733839417767,0.15033123,97849.0,97841.0,0.00319452]
[1733839417967,0.15033123,97849.0,97837.0,0.3608]
[1733839417968,0.15033123,97849.0,97842.0,0.00319452]
[1733839418270,0.30066246,97852.0,97837.0,0.3608]
[1733839418472,0.3608,97840.0,97831.0,0.41189]
[1733839418772,9.32e-05,97839.0,97825.0,0.05122024]
[1733839418968,0.0890932,97839.0,97826.0,0.00319499]
[1733839419168,0.0890932,97839.0,97825.0,0.05122024]
[1733839419169,0.0890932,97839.0,97827.0,0.00319499]
[1733839419357,0.0890932,97839.0,97837.0,0.051087]
[1733839419563,9.32e-05,97839.0,97837.0,0.051087]
[1733839419767,9.32e-05,97839.0,97832.0,0.3608]
[1733839419968,9.32e-05,97839.0,97833.0,0.05428379]
[1733839420163,9.32e-05,97839.0,97825.0,0.00012724]
[1733839420164,9.32e-05,97839.0,97834.0,0.00319479]
[1733839420357,0.051087,97838.0,97825.0,0.00012724]
[1733839420565,0.051087,97838.0,97837.0,0.009]
[1733839420768,0.0010932,97839.0,97826.0,0.009]
[1733839420769,0.051088,97836.0,97826.0,0.009]
[1733839420966,0.0010932,97839.0,97826.0,0.009]
[1733839420967,0.3608,97832.0,97826.0,0.009]
[1733839421167,0.0873,97835.0,97833.0,0.009]
[1733839421768,0.0873,97835.0,97826.0,0.018]
[1733839422159,0.001,97836.0,97830.0,0.3608]
[1733839422969,0.051089,97833.0,97830.0,0.3608]
[1733839423371,0.01139016,97839.0,97830.0,0.3688]
[1733839423570,0.01139016,97839.0,97833.0,0.009]
[1733839423571,0.001,97835.0,97833.0,0.009]
[1733839424467,0.001,97833.0,97830.0,0.011]
[1733839424867,0.01139016,97839.0,97830.0,0.008]
[1733839425071,0.001,97835.0,97833.0,0.003]
[1733839425867,0.001,97835.0,97833.0,0.01]
[1733839426676,0.01139016,97839.0,97833.0,0.007]
[1733839426869,0.01139016,97839.0,97834.0,0.051088]
[1733839426870,0.02037739,97836.0,97834.0,0.051088]
[1733839427176,0.001,97835.0,97834.0,0.051088]
[1733839427775,0.02037739,97836.0,97834.0,0.051088]
[1733839428168,0.01239016,97839.0,97833.0,0.016]
[1733839428475,0.01239016,97839.0,97838.0,0.051087]
[1733839428777,0.15033123,97844.0,97836.0,0.3608]
[1733839428976,0.15033123,97844.0,97838.0,0.051086]
[1733839429770,0.00010745,97843.0,97838.0,0.057086]
[1733839430172,0.051085,97841.0,97838.0,0.006]
[1733839430478,0.051086,97839.0,97834.0,0.009]
[1733839430673,0.051086,97839.0,97838.0,0.015]
[1733839431489,0.051093,97826.0,97812.0,0.3608]
[1733839431778,0.411893,97826.0,97812.0,0.3608]
[1733839431972,0.411893,97826.0,97812.0,0.4119]
[1733839433285,0.411893,97826.0,97825.0,0.00212724]
[1733839434384,0.411893,97826.0,97825.0,0.00412724]
[1733839436578,0.42375365,97826.0,97825.0,0.00412724]
[1733839437380,0.42375365,97826.0,97800.0,0.1]
[1733839437381,0.051097,97818.0,97800.0,0.1]
[1733839437575,0.051106,97801.0,97800.0,0.1]
[1733839437774,0.3608,97802.0,97800.0,0.1]
[1733839437977,0.051106,97801.0,97800.0,0.1]
[1733839438177,0.05122129,97801.0,97800.0,0.1]
[1733839438381,0.05122129,97801.0,97800.0,0.103]
[1733839438877,0.05122129,97801.0,97800.0,0.108]
[1733839439280,0.06268489,97801.0,97800.0,0.108]
[1733839439675,0.06268489,97801.0,97800.0,0.103]
[1733839439876,0.15628489,97801.0,97800.0,0.103]
[1733839440384,0.06268489,97801.0,97800.0,0.103]
[1733839440682,0.00011529,97801.0,97800.0,0.103]
[1733839440882,0.00111529,97801.0,97800.0,0.151106]
[1733839441386,0.00111529,97801.0,97800.0,0.15430187]
[1733839441590,0.34348,97808.0,97807.0,0.051103]
[1733839441887,0.34348,97808.0,97807.0,0.41509887]
[1733839442287,0.34348,97808.0,97807.0,0.4202117]
[1733839442785,0.00011764,97808.0,97807.0,0.4202117]
[1733839443585,0.00011764,97808.0,97807.0,0.4242117]
[1733839443773,0.00011764,97808.0,97807.0,0.4190982]
[1733839443976,0.00011764,97808.0,97807.0,0.42421053]
[1733839444389,0.00111764,97808.0,97807.0,0.43557597]
[1733839445390,0.10036177,97820.0,97807.0,0.78867897]
[1733839445591,0.10036177,97830.0,97820.0,0.051096]
[1733839445883,0.10036177,97830.0,97819.0,0.411896]
[1733839445884,0.10036177,97830.0,97829.0,0.051091]
[1733839446085,0.10036177,97839.0,97838.0,0.051087]
[1733839446285,0.10036177,97848.0,97838.0,0.36910753]
[1733839446487,0.10036177,97848.0,97847.0,0.411882]
[1733839446680,0.051079,97854.0,97851.0,0.05108]
[1733839446989,9.511e-05,97853.0,97852.0,0.00830753]
[1733839448084,9.511e-05,97853.0,97852.0,0.0031952]
[1733839448787,9.511e-05,97853.0,97852.0,0.0061952]
[1733839449288,9.511e-05,97853.0,97852.0,0.0031952]
[1733839449487,9.511e-05,97853.0,97852.0,0.0081952]
[1733839450184,9.511e-05,97853.0,97852.0,0.0071952]
[1733839450589,9.511e-05,97853.0,97852.0,0.0123059]
[1733839451092,0.15047727,97870.0,97852.0,0.35016561]
[1733839451384,0.3608,97877.0,97862.0,0.3608]
[1733839451691,0.15047727,97872.0,97870.0,0.05107]
[1733839451893,0.3608,97877.0,97871.0,0.0031952]
[1733839452189,0.00011284,97876.0,97872.0,0.0031952]
[1733839452388,0.00011284,97876.0,97873.0,0.0031952]
[1733839452579,0.00011284,97876.0,97874.0,0.0031952]
[1733839452777,0.00011284,97876.0,97874.0,0.051067]
[1733839452981,0.00011284,97876.0,97875.0,0.00319358]
[1733839453183,0.00011284,97876.0,97874.0,0.051067]
[1733839453483,0.00111284,97876.0,97875.0,0.00319352]
[1733839453684,0.00111284,97876.0,97875.0,0.00319351]
[1733839454289,0.00111284,97876.0,97875.0,0.00830268]
[1733839454479,0.00111284,97876.0,97875.0,0.36910268]
[1733839454480,0.00711284,97876.0,97875.0,0.36910268]
[1733839455090,0.009,97876.0,97875.0,0.37010268]
[1733839455493,0.15047727,97900.0,97897.0,0.051056]
[1733839455689,0.15047727,97900.0,97898.0,0.051055]
[1733839455891,0.00010702,97899.0,97898.0,0.051055]
[1733839456287,0.00010702,97899.0,97894.0,0.3608]
[1733839456593,0.00010702,97899.0,97897.0,0.051056]
[1733839458396,0.00010702,97899.0,97894.0,0.3608]
[1733839458595,0.00010702,97899.0,97875.0,0.61214105]
[1733839458596,0.3608,97897.0,97883.0,0.3608]
[1733839458893,0.3608,97897.0,97884.0,0.051062]
[1733839459189,0.411856,97897.0,97885.0,0.051062]
[1733839459597,0.3608,97897.0,97883.0,0.3608]
[1733839459797,0.00010702,97899.0,97888.0,0.05106]
[1733839459985,0.00010702,97899.0,97883.0,0.3628]
[1733839460498,0.00010702,97899.0,97889.0,0.05106]
[1733839461899,0.00010702,97899.0,97895.0,0.051057]
[1733839462495,0.00010702,97899.0,97898.0,0.051055]
[1733839462693,0.00010702,97899.0,97895.0,0.3608]
[1733839462896,0.00010702,97899.0,97889.0,0.001]
[1733839463195,0.15058429,97899.0,97889.0,0.002]
[1733839463393,0.3608,97897.0,97889.0,0.002]
[1733839463999,0.051059,97892.0,97889.0,0.002]
[1733839464292,0.1778,97891.0,97889.0,0.002]
[1733839464499,0.1778,97891.0,97889.0,0.001]
[1733839464995,0.1778,97891.0,97875.0,0.36233223]
[1733839465191,0.1778,97891.0,97881.0,0.051064]
[1733839465399,0.1778,97891.0,97875.0,0.36233223]
[1733839465400,0.051059,97890.0,97876.0,0.051067]
[1733839465698,0.3608,97886.0,97875.0,0.00153223]
[1733839465896,0.32927727,97891.0,97881.0,0.051064]
[1733839466088,0.32927727,97891.0,97875.0,0.00153223]
[1733839466290,0.32827727,97891.0,97875.0,0.00153223]
[1733839466590,0.32827727,97891.0,97888.0,0.05106]
[1733839467292,0.32827727,97891.0,97881.0,0.002]
[1733839467293,0.3608,97889.0,97881.0,0.002]
[1733839467597,0.3608,97889.0,97881.0,0.053064]
[1733839467792,0.3608,97889.0,97881.0,0.002]
[1733839468404,0.3608,97889.0,97876.0,0.054066]
[1733839468405,0.051061,97888.0,97876.0,0.051066]
[1733839468595,0.051061,97888.0,97881.0,0.002]
[1733839469000,0.32827727,97891.0,97881.0,0.001]
[1733839469200,0.37830446,97891.0,97881.0,0.001]
[1733839469402,0.37830446,97891.0,97883.0,0.051063]
[1733839470088,0.37830446,97891.0,97886.0,0.3608]
[1733839470294,0.19025223,97891.0,97886.0,0.3608]
[1733839470488,0.09,97891.0,97889.0,0.05106]
[1733839470697,0.10025223,97896.0,97895.0,0.051057]
[1733839470892,0.00010702,97899.0,97895.0,0.3608]
[1733839471098,0.00010702,97899.0,97898.0,0.051055]
[1733839472100,0.00110702,97899.0,97898.0,0.051055]
[1733839472306,0.00510702,97899.0,97898.0,0.051055]
[1733839472801,0.00110702,97899.0,97898.0,0.051055]
[1733839473007,0.00510702,97899.0,97898.0,0.051055]
[1733839473206,0.00510702,97899.0,97895.0,0.3608]
[1733839473406,0.00510702,97899.0,97884.0,0.5374]
[1733839473597,0.00510702,97899.0,97898.0,0.051055]
[1733839474408,0.1764,97919.0,97898.0,0.051055]
[1733839474601,0.1764,97919.0,97907.0,0.411851]
[1733839474905,0.34344,97908.0,97907.0,0.411851]
[1733839475106,0.34344,97908.0,97900.0,0.051054]
[1733839475306,0.34344,97908.0,97895.0,0.54264525]
[1733839475307,0.34344,97908.0,97895.0,0.3608]
[1733839475503,0.34344,97908.0,97888.0,0.18184525]
[1733839475504,0.001,97899.0,97888.0,0.18184525]
[1733839475698,0.0896,97898.0,97888.0,0.05106]
[1733839475897,0.0896,97898.0,97880.0,0.18184525]
[1733839476205,0.411859,97891.0,97879.0,0.3608]
[1733839476505,0.0944,97890.0,97879.0,0.3608]
[1733839477094,0.05106,97889.0,97871.0,0.18184525]
[1733839477311,0.0944,97890.0,97868.0,0.54264525]
[1733839477509,0.10025223,97885.0,97869.0,0.18184525]
[1733839477900,0.10025223,97885.0,97880.0,0.003]
[1733839478514,0.051063,97884.0,97880.0,0.003]
[1733839478701,0.051063,97884.0,97868.0,0.3608]
[1733839478702,0.09153701,97884.0,97875.0,0.01253223]
[1733839478906,0.19178924,97885.0,97879.0,0.051065]
[1733839479106,0.19178924,97885.0,97875.0,0.01253223]
[1733839479410,0.10025223,97885.0,97878.0,0.051066]
[1733839479599,0.09153701,97884.0,97878.0,0.051066]
[1733839479799,0.09153701,97883.0,97878.0,0.051066]
[1733839480005,0.09153701,97883.0,97875.0,0.00553223]
[1733839480208,0.10025223,97885.0,97875.0,0.00553223]
[1733839480209,0.19178924,97885.0,97884.0,0.051063]
[1733839480407,0.3608,97889.0,97884.0,0.051063]
[1733839480408,0.09153701,97886.0,97884.0,0.051063]